bitfinex-derivatives/quotes_SOLF0:USTF0_20250507
["timestamp","ask_amount","ask_price","bid_price","bid_amount"]
[1746593502144,4.49264462,145.98,145.92,35.654]
[1746593502442,4.49264462,145.97,145.92,35.654]
[1746593502643,11.34514462,145.96,145.93,6.8536]
[1746593502843,6.8525,145.96,145.93,6.8536]
[1746593504839,6.8516,145.98,145.95,6.8523]
[1746593505045,4.50032351,145.97,145.92,28.8]
[1746593505242,28.86,145.99,145.92,57.7]
[1746593505444,4.50094457,145.98,145.96,6.8518]
[1746593505643,4.50094457,145.97,145.96,6.8518]
[1746593505946,4.50094928,145.97,145.95,6.8525]
[1746593506147,35.711,145.99,145.95,6.8525]
[1746593506343,11.34780212,145.98,145.95,6.8525]
[1746593506544,4.49650212,145.97,145.95,6.8525]
[1746593507246,11.34830212,145.97,145.93,6.8533]
[1746593507447,4.49930042,145.96,145.93,6.8533]
[1746593507647,28.86,145.99,145.93,6.8533]
[1746593507848,6.8524,145.96,145.93,6.8533]
[1746593508045,28.86,145.99,145.92,28.8]
[1746593508249,33.42227662,145.98,145.89,33.0036]
[1746593508443,4.50227662,145.97,145.89,33.0036]
[1746593508643,33.30227662,145.96,145.89,33.0036]
[1746593508843,4.50227662,145.95,145.89,39.8587]
[1746593509040,6.8539,145.93,145.89,39.8587]
[1746593509245,28.92,145.94,145.91,6.8545]
[1746593509445,4.50398885,145.93,145.91,6.8545]
[1746593509646,35.7735,145.94,145.91,6.8545]
[1746593509846,4.50398265,145.93,145.91,6.8545]
[1746593510046,6.8536,145.93,145.9,6.8548]
[1746593511252,6.8541,145.92,145.9,6.8548]
[1746593511750,28.92,145.94,145.89,30.8596]
[1746593511952,4.50650824,145.93,145.89,30.8596]
[1746593512152,4.50650824,145.92,145.89,30.8596]
[1746593512352,28.92,145.94,145.89,37.715]
[1746593512552,6.8544,145.92,145.89,37.715]
[1746593515352,6.8544,145.92,145.89,30.8596]
[1746593516055,4.51558486,145.91,145.89,30.8596]
[1746593516248,6.8544,145.92,145.89,30.8596]
[1746593516450,4.51544844,145.91,145.89,30.8596]
[1746593516648,6.8544,145.92,145.89,30.8596]
[1746593516953,4.51548536,145.91,145.89,37.7148]
[1746593517154,6.8538,145.93,145.89,37.7148]
[1746593517354,4.51698157,145.92,145.89,37.7148]
[1746593517553,4.51698157,145.91,145.89,37.7148]
[1746593517753,6.8538,145.93,145.89,37.7148]
[1746593517953,4.51727799,145.92,145.89,37.7148]
[1746593518154,4.51727799,145.91,145.89,37.7148]
[1746593518347,28.92,145.94,145.89,37.7148]
[1746593518554,6.8541,145.92,145.89,37.7148]
[1746593518753,4.51887158,145.91,145.88,28.92]
[1746593518959,4.51811464,145.9,145.88,28.92]
[1746593519155,4.52009578,145.89,145.88,28.92]
[1746593519357,4.52009578,145.89,145.88,35.7759]
[1746593519758,4.52009578,145.89,145.88,28.92]
[1746593520653,4.52407847,145.89,145.88,28.92]
[1746593522062,4.5252713,145.89,145.88,28.92]
[1746593522858,4.5252713,145.89,145.88,35.7759]
[1746593523158,4.52566592,145.89,145.88,35.7759]
[1746593523655,6.8548,145.91,145.88,35.7759]
[1746593523862,4.52503789,145.9,145.88,35.7759]
[1746593524161,4.52503789,145.89,145.88,35.7759]
[1746593525353,36.20311523,145.96,145.92,6.8538]
[1746593525354,28.8,145.96,145.92,6.8538]
[1746593525558,28.88,145.96,145.89,7.40311523]
[1746593525962,28.88,145.96,145.9,2.1144]
[1746593526655,28.88,145.97,145.9,2.1144]
[1746593527255,35.732,145.97,145.9,2.1144]
[1746593527762,6.8525,145.96,145.9,2.1144]
[1746593528960,6.8525,145.96,145.93,6.8534]
[1746593531163,35.6919,145.97,145.94,6.8531]
[1746593534665,28.92,145.99,145.92,28.92]
[1746593534865,28.82,145.98,145.92,28.92]
[1746593535264,35.6712,145.99,145.95,6.8526]
[1746593535565,28.82,145.99,145.95,6.8526]
[1746593535761,28.92,146.01,145.95,6.8526]
[1746593535961,28.82,146.0,145.95,6.8526]
[1746593536268,6.8512,145.99,145.95,6.8526]
[1746593536867,6.8514,145.98,145.95,6.8526]
[1746593537269,4.4265428,145.97,145.95,6.8526]
[1746593537569,4.4265428,145.96,145.95,6.8526]
[1746593540072,28.8,145.99,145.96,6.8519]
[1746593540271,4.42726858,145.98,145.96,6.8519]
[1746593540472,4.42726858,145.97,145.94,1.0]
[1746593540671,28.82,146.01,145.94,1.0]
[1746593541074,28.82,146.01,145.95,7.40311523]
[1746593541371,6.8505,146.0,145.96,28.78]
[1746593541572,4.2097,146.03,145.96,28.78]
[1746593541774,28.86,146.02,145.96,28.78]
[1746593541973,6.8513,145.98,145.96,28.78]
[1746593542173,28.86,146.02,145.96,28.78]
[1746593542672,6.8526,145.95,145.94,1.0]
[1746593543071,11.27385534,145.95,145.94,1.0]
[1746593543264,11.27381551,145.95,145.94,1.0]
[1746593543573,4.42121551,145.95,145.94,1.0]
[1746593544972,4.42121551,145.95,145.94,7.8531]
[1746593545168,4.42448102,145.95,145.94,7.8531]
[1746593545372,4.42448102,145.95,145.94,1.0]
[1746593546468,28.88,145.97,145.94,1.0]
[1746593546773,4.42463369,145.96,145.94,1.0]
[1746593546973,4.42463618,145.95,145.94,1.0]
[1746593547276,35.7319,145.97,145.94,1.0]
[1746593547472,28.88,145.97,145.94,7.8531]
[1746593547668,4.42424329,145.96,145.94,7.8531]
[1746593547867,4.42424329,145.95,145.94,7.8531]
[1746593548075,4.42306383,145.95,145.94,7.8531]
[1746593548264,35.7319,145.97,145.94,7.8531]
[1746593548467,4.42320835,145.96,145.94,7.8531]
[1746593548673,4.42320835,145.95,145.94,7.8531]
[1746593548869,4.42327988,145.95,145.94,7.8531]
[1746593549373,28.9,146.0,145.96,6.8518]
[1746593549572,4.42128399,145.99,145.96,6.8518]
[1746593549772,4.42128399,145.98,145.96,6.8518]
[1746593549974,4.42128399,145.97,145.96,6.8518]
[1746593552578,28.9,146.0,145.97,6.8517]
[1746593552773,4.42051171,145.99,145.97,6.8517]
[1746593552973,4.42051171,145.98,145.97,6.8517]
[1746593553974,4.42051171,145.98,145.97,35.6317]
[1746593557378,31.0247,146.03,146.0,6.8503]
[1746593557683,4.42052777,146.02,146.0,6.8503]
[1746593557978,4.42052777,146.01,146.0,6.8503]
[1746593558481,4.42052777,146.01,145.99,6.8506]
[1746593558684,4.42052777,146.0,145.99,6.8506]
[1746593559781,37.874,146.03,146.0,6.8503]
[1746593560081,4.40762924,146.02,146.0,6.8503]
[1746593560282,4.40762924,146.01,146.0,6.8503]
[1746593561682,4.40762924,146.01,145.99,6.8505]
[1746593561882,4.40762924,146.0,145.99,6.8505]
[1746593570685,4.41305492,146.0,145.99,6.8505]
[1746593576087,97.10546249,146.04,146.0,6.85]
[1746593576289,11.25855688,146.03,145.97,28.78]
[1746593576485,4.40945688,146.02,145.97,28.78]
[1746593576784,4.40945688,146.01,145.97,28.78]
[1746593576986,4.40945688,146.0,145.97,28.78]
[1746593577283,6.8491,146.03,145.99,6.8504]
[1746593577487,4.40948087,146.02,145.99,6.8504]
[1746593577678,4.40948087,146.01,145.99,6.8504]
[1746593577877,4.40950966,146.0,145.99,6.8504]
[1746593579587,4.40950966,146.0,145.98,6.851]
[1746593579788,4.40950966,145.99,145.98,6.851]
[1746593581192,4.4129617,145.99,145.98,6.851]
[1746593582996,4.4129617,145.99,145.97,28.78]
[1746593583288,4.4129617,145.98,145.97,28.78]
[1746593583892,4.4129617,145.98,145.94,29.78]
[1746593584088,6.8522,145.96,145.94,29.78]
[1746593584294,4.4129617,145.95,145.94,29.78]
[1746593584695,4.4129617,145.95,145.94,1.0]
[1746593584992,11.2655617,145.95,145.94,1.0]
[1746593585390,4.4129617,145.95,145.94,1.0]
[1746593586695,4.42735952,145.95,145.94,1.0]
[1746593586998,4.42735952,145.95,145.94,7.8531]
[1746593592203,28.76,145.97,145.95,6.8526]
[1746593592500,4.42703888,145.96,145.95,6.8526]
[1746593593403,4.42703888,145.96,145.95,35.6326]
[1746593596997,28.78,146.01,145.98,6.851]
[1746593597904,35.6301,146.01,145.97,6.8515]
[1746593598095,28.78,146.01,145.97,6.8515]
[1746593598295,28.78,146.01,145.95,28.78]
[1746593598504,6.8509,145.99,145.96,6.8519]
[1746593600104,6.8505,146.0,145.98,1.0]
[1746593600595,6.8503,146.0,145.98,1.0]
[1746593601807,6.8508,145.99,145.98,1.0]
[1746593607201,28.78,146.01,145.98,1.0]
[1746593607398,4.2891,146.03,145.98,1.0]
[1746593607800,9.0274,146.03,146.0,6.8499]
[1746593607999,28.76,146.04,146.0,6.8499]
[1746593608403,6.849,146.03,146.0,6.8499]
[1746593608912,4.34112632,146.02,146.01,6.8498]
[1746593609204,28.76,146.05,145.99,28.76]
[1746593609600,4.34114754,146.02,145.99,28.76]
[1746593609802,11.18964754,146.04,145.99,28.76]
[1746593610108,4.34114754,146.01,146.0,6.8503]
[1746593610405,4.34114754,146.03,145.99,28.76]
[1746593610603,6.8485,146.04,145.99,28.76]
[1746593610806,4.33752044,146.02,145.99,28.76]
[1746593611506,4.33761336,146.01,146.0,6.8503]
[1746593613007,6.8485,146.04,146.01,6.8497]
[1746593613207,4.3371357,146.03,146.01,6.8497]
[1746593613410,4.3371357,146.02,146.01,6.8497]
[1746593617510,30.8542,146.06,146.01,6.8497]
[1746593617711,4.33478503,146.05,146.01,6.8497]
[1746593617907,4.33478503,146.04,146.02,6.8493]
[1746593618112,4.33478503,146.03,146.02,6.8493]
[1746593622209,4.33478503,146.05,146.02,6.8493]
[1746593622418,4.33478503,146.04,146.03,35.5889]
[1746593622610,28.74,146.11,146.03,28.74]
[1746593622810,11.0864,146.09,146.06,6.8474]
[1746593623426,4.2401,146.09,146.06,6.8474]
[1746593623914,11.0863,146.09,146.06,6.8474]
[1746593624913,4.2401,146.09,146.06,6.8474]
[1746593625213,6.8466,146.08,146.06,6.8474]
[1746593626613,11.0864,146.09,146.06,6.8474]
[1746593627318,6.8463,146.09,146.06,6.8474]
[1746593628320,6.8458,146.1,146.07,6.847]
[1746593628520,35.5458,146.1,146.07,6.847]
[1746593635424,6.8458,146.1,146.07,6.847]
[1746593635619,4.174,146.13,146.07,28.68]
[1746593635926,30.7662,146.14,146.07,36.08311523]
[1746593636123,4.0655,146.18,146.07,36.08311523]
[1746593636326,28.72,146.17,146.1,7.40311523]
[1746593636527,28.72,146.17,146.11,28.68]
[1746593637127,32.8255,146.18,146.11,28.68]
[1746593637328,32.8255,146.18,146.14,6.8433]
[1746593637730,39.6676,146.18,146.15,6.8433]
[1746593638029,39.6676,146.18,146.11,28.68]
[1746593638535,39.6676,146.18,146.14,6.8436]
[1746593639019,6.8423,146.17,146.14,6.8436]
[1746593642731,10.9076,146.18,146.14,6.8436]
[1746593643733,10.9076,146.18,146.15,6.8432]
[1746593646337,6.8423,146.17,146.15,6.8432]
[1746593646634,2.0315,146.18,146.15,6.8432]
[1746593647336,8.8737,146.18,146.15,6.8432]
[1746593647537,2.0315,146.18,146.15,6.8432]
[1746593647835,6.8421,146.18,146.15,6.8432]
[1746593649242,6.8424,146.17,146.15,6.8432]
[1746593652538,6.8421,146.18,146.15,6.8432]
[1746593652734,2.1728,146.21,146.15,28.66]
[1746593652935,32.7972,146.22,146.15,28.66]
[1746593653140,6.8407,146.21,146.15,28.66]
[1746593653342,28.72,146.22,146.15,28.66]
[1746593653746,35.56,146.22,146.19,6.8411]
[1746593654145,6.84,146.22,146.18,6.8416]
[1746593654345,6.84,146.22,146.15,28.66]
[1746593654744,6.84,146.22,146.18,6.8415]
[1746593655445,6.8407,146.21,146.17,6.8421]
[1746593657743,6.8407,146.21,146.18,6.8418]
[1746593657945,6.8407,146.21,146.15,28.66]
[1746593657946,6.8401,146.22,146.15,28.66]
[1746593658446,28.7,146.24,146.15,28.66]
[1746593658951,28.7,146.24,146.16,7.40311523]
[1746593659141,28.7,146.24,146.16,9.51811523]
[1746593659539,6.8398,146.23,146.19,6.8411]
[1746593659747,6.8398,146.23,146.19,35.5011]
[1746593660442,6.8398,146.23,146.2,6.8409]
[1746593660648,28.68,146.25,146.19,28.66]
[1746593660848,63.6505,146.26,146.19,28.66]
[1746593661045,6.8388,146.25,146.21,6.8401]
[1746593663847,6.8388,146.25,146.22,6.84]
[1746593665049,34.9705,146.26,146.19,37.06311523]
[1746593665251,4.1848,146.26,146.19,37.06311523]
[1746593665752,36.10311523,146.29,146.19,37.06311523]
[1746593665947,28.7,146.28,146.19,37.06311523]
[1746593666344,6.8378,146.27,146.19,37.06311523]
[1746593666540,28.7,146.28,146.19,37.06311523]
[1746593666850,6.8377,146.27,146.19,37.06311523]
[1746593667349,6.8377,146.27,146.23,6.8392]
[1746593667556,6.8377,146.27,146.23,35.5392]
[1746593668247,28.7,146.28,146.23,35.5392]
[1746593668545,6.8382,146.26,146.23,35.5392]
[1746593669653,28.7,146.28,146.19,1.0]
[1746593670152,6.8407,146.21,146.19,1.0]
[1746593670351,28.84,146.23,146.19,1.0]
[1746593670752,13.6686,146.35,146.21,7.40311523]
[1746593670955,28.84,146.34,146.24,7.40311523]
[1746593671251,35.2895,146.34,146.22,64.3799]
[1746593671647,7.40311523,146.32,146.22,57.54]
[1746593671843,36.10311523,146.32,146.22,57.54]
[1746593672454,6.8374,146.28,146.23,6.8392]
[1746593672643,4.33443918,146.27,146.22,57.54]
[1746593672847,28.82,146.28,146.22,57.54]
[1746593673052,11.17437127,146.27,146.23,6.8393]
[1746593673250,6.8379,146.27,146.22,57.54]
[1746593673454,6.8379,146.27,146.23,6.8391]
[1746593673753,6.8379,146.27,146.22,57.54]
[1746593674250,6.8379,146.27,146.25,6.8384]
[1746593674452,35.6574,146.28,146.25,6.8384]
[1746593674654,4.33873479,146.27,146.25,6.8384]
[1746593674852,28.82,146.28,146.22,57.54]
[1746593675053,4.33814549,146.27,146.22,57.54]
[1746593675353,28.82,146.28,146.22,57.54]
[1746593675555,4.3375622,146.27,146.22,57.54]
[1746593675752,35.6572,146.28,146.22,57.54]
[1746593676055,4.33725756,146.27,146.24,6.8387]
[1746593676245,35.6572,146.28,146.24,6.8387]
[1746593676450,4.33595104,146.27,146.24,6.8387]
[1746593676651,35.6572,146.28,146.24,6.8387]
[1746593676853,4.33847267,146.27,146.25,6.8385]
[1746593677053,35.6572,146.28,146.25,6.8385]
[1746593677253,4.33847267,146.27,146.25,6.8385]
[1746593677445,35.6572,146.28,146.25,6.8385]
[1746593677651,4.33938432,146.27,146.25,6.8385]
[1746593677853,35.6572,146.28,146.24,6.8389]
[1746593678252,4.33941585,146.27,146.24,6.8389]
[1746593678553,35.6572,146.28,146.24,6.8389]
[1746593678751,4.33954978,146.27,146.24,6.8389]
[1746593678951,6.8378,146.27,146.24,6.8389]
[1746593679158,28.82,146.28,146.24,6.8389]
[1746593679458,4.33917001,146.27,146.24,6.8389]
[1746593679653,35.6576,146.28,146.24,6.8389]
[1746593679859,4.34177488,146.27,146.24,6.8389]
[1746593680061,28.82,146.28,146.24,6.8389]
[1746593680258,4.34141911,146.27,146.24,6.8389]
[1746593680559,4.34141911,146.26,146.24,6.8389]
[1746593680759,6.8378,146.27,146.24,6.8389]
[1746593680958,4.3430592,146.26,146.24,6.8389]
[1746593681158,6.8378,146.27,146.24,6.8389]
[1746593681358,11.18176753,146.26,146.23,6.8393]
[1746593681564,4.34346753,146.25,146.22,28.7]
[1746593682160,4.34346753,146.25,146.19,1.0]
[1746593682361,4.34346753,146.24,146.19,29.7]
[1746593682658,4.34446757,146.23,146.2,6.8406]
[1746593682960,6.8396,146.23,146.2,6.8406]
[1746593683162,28.76,146.24,146.21,6.8403]
[1746593683454,4.34254654,146.23,146.21,6.8403]
[1746593683761,35.5993,146.24,146.21,6.8403]
[1746593684060,4.34233168,146.23,146.21,6.8403]
[1746593684259,35.5993,146.24,146.21,6.8403]
[1746593684459,4.34317523,146.23,146.21,6.8403]
[1746593684655,35.5993,146.24,146.21,6.8403]
[1746593684862,4.33938097,146.23,146.21,6.8403]
[1746593685065,35.5993,146.24,146.21,6.8403]
[1746593685255,4.33948786,146.23,146.21,6.8403]
[1746593685459,35.5993,146.24,146.21,6.8403]
[1746593685664,4.33952322,146.23,146.21,6.8403]
[1746593685864,35.5993,146.24,146.21,6.8403]
[1746593686065,4.34124898,146.23,146.21,6.8403]
[1746593686267,35.5993,146.24,146.21,6.8403]
[1746593686461,4.34151353,146.23,146.21,6.8403]
[1746593686766,35.5993,146.24,146.21,6.8403]
[1746593686962,4.34195501,146.23,146.21,6.8403]
[1746593687163,35.5993,146.24,146.21,6.8403]
[1746593687363,4.34302648,146.23,146.21,6.8403]
[1746593687564,35.5993,146.24,146.21,6.8403]
[1746593687764,4.34302594,146.23,146.21,6.8403]
[1746593687963,35.5993,146.24,146.21,6.8403]
[1746593688168,4.34245668,146.23,146.21,6.8403]
[1746593688466,35.5993,146.24,146.21,6.8403]
[1746593688668,4.34361251,146.23,146.21,6.8403]
[1746593688867,35.5993,146.24,146.21,6.8403]
[1746593689067,4.34405352,146.23,146.21,6.8403]
[1746593689271,35.5993,146.24,146.21,6.8403]
[1746593689470,4.34534165,146.23,146.21,6.8403]
[1746593689670,35.5993,146.24,146.21,6.8403]
[1746593689869,4.34534165,146.23,146.21,6.8403]
[1746593690068,35.5993,146.24,146.21,6.8403]
[1746593690271,4.34664174,146.23,146.21,6.8403]
[1746593690471,35.5993,146.24,146.21,6.8403]
[1746593690671,4.34664174,146.23,146.21,6.8403]
[1746593690871,35.5993,146.24,146.21,6.8403]
[1746593691170,4.34664174,146.23,146.21,6.8403]
[1746593691368,35.5993,146.24,146.21,6.8403]
[1746593691570,4.34848904,146.23,146.21,6.8403]
[1746593691866,6.8383,146.26,146.23,6.8395]
[1746593692071,4.34850521,146.25,146.19,39.09271523]
[1746593692269,4.34850521,146.24,146.2,28.72]
[1746593692469,39.7683,146.27,146.23,6.8391]
[1746593692670,4.35035996,146.26,146.23,6.8391]
[1746593692870,4.35035996,146.25,146.23,6.8391]
[1746593693072,4.35035996,146.24,146.23,6.8391]
[1746593693272,39.7483,146.27,146.24,6.839]
[1746593693474,4.35598612,146.26,146.24,6.839]
[1746593693677,4.35598612,146.25,146.2,28.72]
[1746593693975,4.35598612,146.24,146.23,6.8393]
[1746593695375,4.35598612,146.24,146.22,6.8397]
[1746593695579,4.35598612,146.23,146.22,6.8397]
[1746593698378,28.72,146.32,146.22,7.40311523]
[1746593698676,6.2598,146.31,146.23,28.7]
[1746593698878,6.8372,146.28,146.25,6.8385]
[1746593699579,6.8368,146.29,146.23,28.7]
[1746593700181,6.8376,146.28,146.23,28.7]
[1746593700679,6.8376,146.28,146.25,6.8386]
[1746593700883,28.72,146.3,146.23,28.7]
[1746593701083,6.2598,146.31,146.25,7.40311523]
[1746593701384,13.0958,146.31,146.28,6.8369]
[1746593701679,6.2598,146.31,146.25,7.40311523]
[1746593701875,6.2598,146.31,146.27,6.8373]
[1746593702082,6.2598,146.31,146.25,7.40311523]
[1746593702281,6.2598,146.31,146.28,6.8369]
[1746593702784,13.0958,146.31,146.28,6.8369]
[1746593703281,13.0958,146.31,146.29,6.8367]
[1746593703882,13.0958,146.31,146.28,6.837]
[1746593704581,13.0958,146.31,146.25,7.40311523]
[1746593706981,13.0958,146.31,146.27,6.8374]
[1746593707687,13.0958,146.31,146.28,6.8371]
[1746593707988,13.0958,146.31,146.25,7.40311523]
[1746593708189,13.0958,146.31,146.27,6.8374]
[1746593709087,6.8363,146.3,146.27,6.8374]
[1746593710087,6.8363,146.3,146.28,6.8371]
[1746593710386,4.27908659,146.29,146.28,6.8371]
[1746593716296,4.28155859,146.29,146.28,6.8371]
[1746593723604,4.27602382,146.29,146.28,6.8371]
[1746593725199,4.27602382,146.29,146.28,7.8371]
[1746593727306,4.26982749,146.29,146.28,7.8371]
[1746593727603,4.26982749,146.29,146.28,1.0]
[1746593728201,11.10652749,146.29,146.28,1.0]
[1746593728804,6.8377,146.27,146.24,35.4588]
[1746593729105,4.26982749,146.29,146.24,28.62]
[1746593729106,4.2685,146.29,146.24,28.62]
[1746593729305,4.26942191,146.28,146.25,6.8382]
[1746593729502,4.26942191,146.27,146.25,6.8382]
[1746593729695,4.26965925,146.26,146.25,6.8382]
[1746593730008,11.1057,146.29,146.26,6.8379]
[1746593730308,11.10698502,146.28,146.24,28.62]
[1746593730505,4.26978502,146.27,146.24,28.62]
[1746593730703,6.8372,146.28,146.25,6.8382]
[1746593730902,4.2681909,146.27,146.25,6.8382]
[1746593731103,6.8372,146.28,146.25,6.8382]
[1746593731308,4.26821376,146.27,146.25,6.8382]
[1746593731508,6.8372,146.28,146.25,6.8382]
[1746593731708,4.26873454,146.27,146.25,6.8382]
[1746593731901,6.8372,146.28,146.25,6.8382]
[1746593732096,11.10643454,146.27,146.24,35.4588]
[1746593732301,6.8377,146.27,146.24,35.4588]
[1746593732507,4.2685,146.29,146.24,28.62]
[1746593732709,4.26944387,146.28,146.24,28.62]
[1746593732907,4.2685,146.29,146.24,28.62]
[1746593733111,11.10674387,146.28,146.25,6.8383]
[1746593733511,4.26944387,146.27,146.25,6.8383]
[1746593733703,6.8373,146.28,146.25,6.8383]
[1746593733904,4.26977677,146.26,146.25,6.8383]
[1746593734209,4.26977677,146.27,146.25,6.8383]
[1746593734410,4.26977677,146.26,146.25,6.8383]
[1746593735403,4.27772607,146.26,146.25,6.8383]
[1746593735604,4.27772607,146.26,146.24,35.4589]
[1746593735804,4.27772607,146.25,146.24,35.4589]
[1746593737012,4.27829148,146.25,146.24,35.4589]
[1746593740213,4.27829148,146.25,146.24,28.62]
[1746593740612,4.28203357,146.25,146.24,28.62]
[1746593740913,4.28212192,146.25,146.24,28.62]
[1746593741212,9.00748433,146.25,146.24,28.62]
[1746593745414,9.00748433,146.25,146.23,6.8393]
[1746593745713,9.00748433,146.24,146.23,6.8393]
[1746593746615,9.0094661,146.24,146.23,6.8393]
[1746593747813,9.0094661,146.24,146.22,6.8398]
[1746593748016,9.0094661,146.23,146.22,6.8398]
[1746593748918,9.0094661,146.23,146.21,28.62]
[1746593749120,4.28410369,146.22,146.21,28.62]
[1746593749312,9.0094661,146.22,146.21,28.62]
[1746593749513,15.8494661,146.22,146.21,28.62]
[1746593750020,15.8494661,146.22,146.19,7.8414]
[1746593750021,15.8496661,146.22,146.19,7.8414]
[1746593750218,9.0094661,146.21,146.19,7.8414]
[1746593750519,4.28410369,146.2,146.19,1.0]
[1746593751018,9.0094661,146.2,146.19,1.0]
[1746593751816,9.0094661,146.2,146.19,7.8414]
[1746593753221,8.9566,146.25,146.22,6.8397]
[1746593754021,6.8391,146.24,146.21,6.8402]
[1746593754321,2.1178,146.25,146.19,1.0]
[1746593754623,2.1178,146.25,146.2,6.8406]
[1746593755420,6.8396,146.23,146.2,6.8406]
[1746593755819,6.8396,146.23,146.21,6.8404]
[1746593757615,6.84,146.22,146.2,6.8407]
[1746593759616,6.84,146.22,146.19,1.0]
[1746593759814,6.84,146.22,146.19,7.8411]
[1746593760721,6.8406,146.21,146.19,7.8411]
[1746593761221,6.8402,146.22,146.19,7.8411]
[1746593765124,4.31249108,146.21,146.19,7.8411]
[1746593765323,4.64463711,146.2,146.19,7.8411]
[1746593769724,4.64463711,146.2,146.19,12.557432]
[1746593777028,8.95739401,146.2,146.19,12.557432]
[1746593779827,8.95594093,146.2,146.19,12.557432]
[1746593780328,8.95594093,146.2,146.19,7.8411]
[1746593780529,8.95594093,146.2,146.19,12.557432]
[1746593782333,2.1178,146.25,146.22,6.8396]
[1746593782635,4.30966204,146.24,146.22,4.716332]
[1746593782834,4.30966204,146.23,146.22,4.716332]
[1746593783637,6.8384,146.26,146.23,6.8394]
[1746593783836,4.30447152,146.25,146.23,6.8394]
[1746593784033,4.30447152,146.24,146.23,6.8394]
[1746593787438,4.30653352,146.24,146.23,6.8394]
[1746593787739,4.30653352,146.24,146.23,7.8394]
[1746593789239,6.8384,146.26,146.23,7.8394]
[1746593789439,4.30648126,146.25,146.23,7.8394]
[1746593789638,4.30648126,146.24,146.23,7.8394]
[1746593790342,4.30640019,146.24,146.23,7.8394]
[1746593793046,4.30612514,146.24,146.23,7.8394]
[1746593794348,4.30584138,146.24,146.23,7.8394]
[1746593794844,4.3056416,146.24,146.23,7.8394]
[1746593795745,6.8384,146.26,146.23,7.8394]
[1746593795951,4.30543307,146.24,146.23,7.8394]
[1746593796642,6.8386,146.25,146.23,7.8394]
[1746593796847,4.30540098,146.24,146.23,7.8394]
[1746593798250,4.30588888,146.24,146.23,7.8394]
[1746593800445,6.8383,146.26,146.23,7.8394]
[1746593800644,4.30528284,146.25,146.23,7.8394]
[1746593800847,4.30528284,146.24,146.23,7.8394]
[1746593809160,8.9538,146.28,146.25,6.8383]
[1746593809355,4.29557032,146.27,146.25,11.554632]
[1746593809559,4.29557032,146.26,146.23,1.0]
[1746593809856,4.29557032,146.25,146.23,5.716332]
[1746593810049,4.29557032,146.24,146.23,5.716332]
[1746593810659,4.29557032,146.24,146.23,7.8393]
[1746593810966,4.29557032,146.24,146.23,1.0]
[1746593811259,11.13467032,146.24,146.23,1.0]
[1746593812155,4.29557032,146.24,146.23,1.0]
[1746593812857,4.30986373,146.24,146.23,5.716332]
[1746593813158,9.09118605,146.24,146.23,5.716332]
[1746593813857,9.09118605,146.24,146.23,12.555832]
[1746593819958,9.07968912,146.24,146.23,12.555832]
[1746593821267,9.07853215,146.24,146.23,12.555832]
[1746593823066,9.07989589,146.24,146.23,12.555832]
[1746593823264,9.08349545,146.24,146.23,12.555832]
[1746593826668,4.7850617,146.24,146.23,12.555832]
[1746593826863,9.0875367,146.24,146.23,12.555832]
[1746593830374,9.08901193,146.24,146.23,12.555832]
[1746593832168,4.30929528,146.24,146.23,12.555832]
[1746593832373,9.10057852,146.24,146.23,12.555832]
[1746593833676,2.1164,146.28,146.26,6.838]
[1746593833875,2.1164,146.28,146.26,11.554332]
[1746593838582,2.1164,146.28,146.27,6.8376]
[1746593842181,2.1164,146.28,146.26,11.554232]
[1746593844680,8.9536,146.28,146.26,4.716332]